Cogmind - Beta 11.1 *** ADVENTURER MODE // 2022.11.30 @ 05:05:22 Player: Olexender Result: Destroyed by D-53 Grenadier with Mini Grenade Launcher Performance ------------- Evolutions (0) 0 Regions Visited (2) 400 Robots Destroyed (30) 150 Value Destroyed (727) 727 Prototype IDs (0) 0 Alien Tech Used (0) 0 Bonus (-12) -12 TOTAL SCORE: 1265 Bonus ------- Friendly Fire -12 Cogmind --------- Core Integrity 0/250 Matter 204/300 Energy 93/100 System Corruption 0% Temperature Cool (25) Movement Core (200) Ox3 Location -10/Mines Parts ------- > --- POWER (1) -------- (None) > --- PROPULSION (2) --- (None) > --- UTILITY (2) ------ Medium Storage Unit Core Shielding > --- WEAPON (2) ------- Mining Laser > --- INVENTORY (10) --- Light Nuclear Core High-capacity Matter Pod (200) Sensor Array Signal Interpreter Light Armor Plating Medium Laser Particle Gun Autogun Peak State ------------ > --- POWER ------------ Light Nuclear Core > --- PROPULSION ------- Aluminum Leg Aluminum Leg > --- UTILITY ---------- Small Storage Unit Improved Terrain Scanner > --- WEAPON ----------- Medium Laser Shotgun > --- INVENTORY -------- Compact Wheel Compact Wheel Seismic Detector Medium Laser Light Assault Rifle Shotgun Shotgun Mining Laser [Rating: 13] Favorites ----------- Power Light Nuclear Core Engine Ion Engine Power Core Light Nuclear Core Propulsion Aluminum Leg Leg Aluminum Leg Wheel Compact Wheel Utility Medium Storage Unit Device Structural Scanner Storage Medium Storage Unit Protection Core Shielding Weapon Particle Gun Energy Gun Particle Gun Ballistic Gun Shotgun Ballistic Cannon Light Cannon Launcher Grenade Launcher Special Weapon Mining Laser Build | -11 -10 -10 ------- Run | Scr Mat Min Slots Evolved . | . . . Power . | . . . Propulsion . | . . . Utility . | . . . Weapon . | . . . Parts Attached 31 | 7 20 4 Power 5 | 1 4 . Engine 1 | 1 . . Core 4 | . 4 . Reactor . | . . . Propulsion 11 | 2 7 2 Treads . | . . . Leg 10 | 2 7 1 Wheel 1 | . . 1 Hover . | . . . Flight . | . . . Utility 5 | 2 3 . Device 2 | 1 1 . Storage 2 | 1 1 . Processor . | . . . Hackware . | . . . Protection 1 | . 1 . Artifact . | . . . Weapon 10 | 2 6 2 Energy Gun 2 | 1 1 . Energy Cannon . | . . . Ballistic Gun 5 | 1 4 . Ballistic Cannon 1 | . 1 . Launcher 1 | . . 1 Special Weapon 1 | . . 1 Impact Weapon . | . . . Slashing Weapon . | . . . Piercing Weapon . | . . . Special Melee Weapon . | . . . Unidentified Prototypes . | . . . Parts Lost 7 | . 1 6 Power 1 | . . 1 Propulsion 3 | . . 3 Utility 1 | . 1 . Weapon 2 | . . 2 Highest Loss Streak 6 | . 1 6 To Critical Strikes . | . . . Average Slot Usage (%) 98 | . 99 97 Engine 1 | . 1 . Core 12 | . 12 13 Leg 27 | . 27 26 Device 6 | . 8 . Storage 14 | . 14 14 Protection 7 | . 5 14 Energy Gun 13 | . 14 13 Ballistic Gun 6 | . 8 . Ballistic Cannon 7 | . 5 13 Naked Turns . | . . . Heaviest Build 22 | 14 22 22 Greatest Support 20 | 20 20 20 Greatest Overweight (x) 7 | 2 7 1 Average Overweight (x) . | . . . Largest Inventory Capacity 10 | 8 10 10 Average Capacity 9 | 5 9 10 Most Carried 10 | 6 10 10 Average Carried 9 | 3 9 9 Final Capacity 10 | 8 10 10 Final Carried 10 | 5 10 8 Class Distribution -------------------- 77% | Scavenger-Mutant 22% | Mutant Dominant Class ---------------- Scavenger-Mutant | -10/Materials Scavenger-Mutant | -10/Mines Resources | -11 -10 -10 ----------- Run | Scr Mat Min Matter Collected 948 | 277 612 59 Remotely . | . . . Salvage Created 1112 | 117 807 188 Parts 52 | 11 36 5 Haulers Intercepted 2 | . 2 . Recyclers Shooed 2 | . 2 . Parts Field Recycled . | . . . Retrieved Matter . | . . . Parts Self-Destructed . | . . . Prevented . | . . . Kills | -11 -10 -10 ------- Run | Scr Mat Min Combat Hostiles Destroyed 30 | . 14 16 Guns 15 | . 12 3 Cannons 8 | . 2 6 AOE 7 | . . 7 Classes Destroyed 7 | 2 3 2 Tunneler 3 | 3 . . Hauler 2 | . 2 . Recycler 3 | 1 2 . Watcher 3 | . 3 . Swarmer 3 | . . 3 Grunt 16 | . 14 2 Assembled 11 | . . 11 Best Kill Streak 11 | 3 6 11 Combat Bots Only 11 | . 3 11 Max Kills in Single Turn 7 | 1 1 7 Gunslinging . | . . . Exploded 7 | . . 7 Melee . | . . . Uniques/NPCs Destroyed . | . . . Combat | -11 -10 -10 -------- Run | Scr Mat Min Damage Taken 1069 | . 347 722 Core 250 | . 35 215 Absorbed by Shields . | . . . Redirected to Shielding 43 | . . 43 Regen/Repaired (Parts) 38 | . 38 . Core Remaining (%) 100 | 100 . . Volleys Fired 83 | 7 58 18 Largest 2 | 2 2 2 Hottest 100 | 70 100 100 Shots Fired 163 | 14 115 34 Gun 131 | 14 103 14 Cannon 29 | . 12 17 Launcher 3 | . . 3 Special . | . . . Kinetic 82 | 7 58 17 Thermal 78 | 7 57 14 Explosive 3 | . . 3 Electromagnetic . | . . . Robot Hit Streak 16 | 3 16 7 Robot Miss Streak 3 | 1 3 3 Penetration Max . | . . . Secondary Targets 1 | . 1 . Max Gunslinging Chain 1 | . 1 . Shots Hit Robots 112 | 8 84 20 Core Hits 77 | 6 41 30 Critical Kills 1 | . 1 . Critical Parts Destroyed . | . . . Critical Strikes 4 | . 3 1 Burn 2 | . 2 . Destroy 1 | . 1 . Blast 1 | . . 1 Melee Attacks . | . . . Impact . | . . . Slashing . | . . . Piercing . | . . . Sneak Attacks . | . . . Combat Hostiles . | . . . Follow-up Attacks . | . . . Damage Inflicted 2082 | 92 1279 711 Guns 1401 | 92 1178 131 Cannons 355 | . 101 254 Explosions 326 | . . 326 Melee . | . . . Ramming . | . . . Kinetic 1021 | 27 740 254 Thermal 735 | 65 539 131 Explosive 326 | . . 326 Electromagnetic . | . . . Impact . | . . . Slashing . | . . . Piercing . | . . . Highest Corruption . | . . . Average Corruption . | . . . Corruption Purged . | . . . Corruption Blocked . | . . . Overload Shots . | . . . Overflow Damage . | . . . Projectiles . | . . . Explosions . | . . . Melee . | . . . Knockbacks 4 | . 2 2 Impact . | . . . Kinetic 4 | . 2 2 Secondary . | . . . Self-Inflicted Damage 19 | . . 19 Shots 1 | . . 1 Rammed . | . . . Targets Rammed . | . . . Kicked . | . . . Crushed . | . . . Highest Temperature 406 | 40 255 406 Average Temperature 88 | 20 64 168 Received Heat Transfer 622 | . 255 367 Effects 2 | . . 2 Matter Decay 1 | . . 1 Damage (minor) 1 | . . 1 Siege Activations . | . . . Robots Corrupted . | . . . Combat Hostiles . | . . . Parts Fried . | . . . Impact Corruptions . | . . . Robots Melted . | . . . Combat Hostiles . | . . . Parts Melted 4 | . 4 . Heat Transferred 2109 | 185 1628 296 Parts Sabotaged . | . . . Parts Stolen . | . . . Parts Stripped . | . . . Power Chain Reactions . | . . . Missiles Intercepted . | . . . Alert | -11 -10 -10 ------- Run | Scr Mat Min Peak Influence 232 | 20 232 138 Initial 11 | . 11 9 Average 73 | 7 72 93 Maximum Alert Level 1 | . 1 . Low Security (%) 98 | 100 98 100 Level 1 1 | . 1 . Level 2 . | . . . Level 3 . | . . . Level 4 . | . . . Level 5 . | . . . High Security . | . . . Max Security . | . . . Squads Dispatched 3 | . 3 . Investigation 3 | . 3 . Extermination . | . . . Reinforcement . | . . . Assault . | . . . Garrison . | . . . Intercept . | . . . Searches Triggered . | . . . Construction Impeded . | . . . Haulers Reinforced . | . . . Active Scanning Responses . | . . . Cargo Convoy Interrupts . | . . . Stealth | -11 -10 -10 --------- Run | Scr Mat Min Distress Signals 2 | . 2 . Communications Jammed . | . . . Distress Signals . | . . . Times Spotted 47 | . 25 22 Peak Tracking Total 15 | . 5 15 Tactical Retreats 1 | . 1 . Traps | -11 -10 -10 ------- Run | Scr Mat Min Traps Triggered 3 | . 3 . Indirectly . | . . . Trap Hack Attempts . | . . . Triggered . | . . . Disarmed 2 | . 2 . Reprogrammed . | . . . Reused . | . . . Traps Extracted . | . . . Installed . | . . . Triggered . | . . . Machines | -11 -10 -10 ---------- Run | Scr Mat Min Machines Disabled 1 | . . 1 Max in Single Turn 1 | . . 1 Machines Sabotaged . | . . . Garrisons Compromised . | . . . Overloaded Fab Kills . | . . . Hacking | -11 -10 -10 --------- Run | Scr Mat Min Machines Accessed 11 | . 11 . Terminals 8 | . 8 . Fabricators . | . . . Repair Stations 1 | . 1 . Recycling Units 2 | . 2 . Scanalyzers . | . . . Garrison Access . | . . . Total Hacks 32 | . 32 . Successful 18 | . 18 . Failed 14 | . 14 . Catastrophic . | . . . Database Lockouts . | . . . Manual . | . . . Terminals 27 | . 27 . Fabricators . | . . . Repair Stations 3 | . 3 . Recycling Units 2 | . 2 . Scanalyzers . | . . . Garrison Access . | . . . Terminal Hacks 14 | . 14 . Level Access Points 1 | . 1 . Alert Level 2 | . 2 . Unreport Threat 1 | . 1 . Disarm Traps 1 | . 1 . Dispatch Records 2 | . 2 . Transport Status 1 | . 1 . Reinforcement Status 1 | . 1 . Hauler Manifests 3 | . 3 . Zone Layout 2 | . 2 . Fabricator Hacks . | . . . Repair Station Hacks 2 | . 2 . Scan Component 1 | . 1 . Repair 1 | . 1 . Recycling Unit Hacks 2 | . 2 . Report Inventory 2 | . 2 . Scanalyzer . | . . . Garrison Access Hacks . | . . . Unauthorized Hacks . | . . . Terminals . | . . . Fabricators . | . . . Repair Stations . | . . . Recycling Units . | . . . Scanalyzers . | . . . Garrison Access . | . . . Data Cores Recovered . | . . . Used . | . . . Hacking Detections 8 | . 8 . Full Trace Events 4 | . 4 . Feedback Events . | . . . Feedback Blocked . | . . . Robot Schematics Acquired . | . . . Robots Built . | . . . Authchips . | . . . Time . | . . . Total Robot Build Rating . | . . . Part Schematics Acquired . | . . . Parts Built . | . . . Authchips . | . . . Time . | . . . Total Part Build Rating . | . . . Parts Repaired 1 | . 1 . Time 38 | . 38 . Parts Recycled . | . . . Recycled Matter . | . . . Retrieved Matter . | . . . Retrieved Components . | . . . Parts Scanalyzed . | . . . Part Schematics Acquired . | . . . Parts Damaged . | . . . Bothacking | -11 -10 -10 ------------ Run | Scr Mat Min Used RIF Installer . | . . . Robots Hacked . | . . . Non-combat . | . . . Combat . | . . . Robot Hacks Applied . | . . . Relay Couplers Released . | . . . Fabnet Peak Effective % . | . . . Robots Rewired . | . . . Allies Hacked . | . . . Hacks Repelled . | . . . Allies | -11 -10 -10 -------- Run | Scr Mat Min Total Allies . | . . . Largest Group . | . . . Highest-Rated Group . | . . . Highest-Rated Ally . | . . . Total Orders . | . . . Ally Attacks . | . . . Total Damage . | . . . Kills . | . . . Allies Corrupted . | . . . Allies Melted 1 | . . 1 Intel | -11 -10 -10 ------- Run | Scr Mat Min Robot Analysis Total . | . . . Derelict Logs Recovered . | . . . Drone Launches . | . . . Drone Recoveries . | . . . Exploration | -11 -10 -10 ------------- Run | Scr Mat Min Turns Passed 2300 | 88 1784 428 Spaces Moved 1074 | 54 823 197 Core 23 | 22 1 . Treads . | . . . Legs 1037 | 32 822 183 Wheels 14 | . . 14 Hover . | . . . Flight . | . . . Fastest Speed 50 | 50 120 100 Average Speed 177 | 94 181 184 Slowest Speed 400 | 150 400 190 Overloaded Moves . | . . . Propulsion Burnouts . | . . . Robots Hopped . | . . . Cave-ins Triggered . | . . . Exploration Rate (%) 51 | 3 99 52 Regions Visited 2 Branch Regions 1 Pre-discovered Areas . | . . . Known Exits Taken . | . . . Unknown Exits Taken 2 | 1 1 . Scrap Searched 1 | . . 1 Spaces Dug . | . . . Terrain Destroyed 24 | . . 24 Melee . | . . . Projectile . | . . . AOE 24 | . . 24 Terrain Rammed . | . . . Walls Destroyed . | . . . Machines Disabled . | . . . Actions | -11 -10 -10 --------- Run | Scr Mat Min Total 1307 | 77 1002 228 Wait 73 | . 65 8 Move 1072 | 53 822 197 Hop . | . . . Pick Up 27 | 10 17 . Fast Attach 8 | 2 6 . Attach 9 | 5 2 2 Detach . | . . . Swap 14 | . 12 2 Drop 21 | . 20 1 Fire 83 | 7 58 18 Melee . | . . . Ram . | . . . Kick . | . . . Crush . | . . . Escape Stasis . | . . . Rewire . | . . . Trap . | . . . Miscellaneous . | . . . Route ------- -11/Scrapyard -10/Materials (discovered 5 exits: *Mat x3 / [*Min x2]) -10/Mines (discovered 1 exit: *Mat) History --------- Turn | Location | Event 7 | -11/Scrapyard | Discovered new exit (range 15) 89 | -11/Scrapyard | Entered Materials 109 | -10/Materials | Discovered new exit (range 16) 304 | -10/Materials | Build established: Mutant 425 | -10/Materials | Repaired Lgt. Nuclear Core 644 | -10/Materials | Discovered new exit (range 16) 807 | -10/Materials | Identified exit to Materials 821 | -10/Materials | Build established: Scavenger-Mutant 858 | -10/Materials | Discovered new exit (range 7) 1539 | -10/Materials | Discovered new exit (range 10) 1873 | -10/Materials | Entered Mines 2027 | -10/Mines | Discovered exit to Materials (range 11) 2240 | -10/Mines | Assembled infested the area 2245 | -10/Mines | Assisted by a Guerilla fighting off Assembled 2281 | -10/Mines | Core integrity fell below 50% 2287 | -10/Mines | Core integrity fell below 20% 2301 | -10/Mines | Destroyed by D-53 Grenadier with Mini Grenade Launcher Last Messages --------------- 02278_ Overheating: Aluminum Leg damaged (-17). 02278_ U-05 Engineer builds a Wall. 02279_ Aluminum Leg destroyed. 02282_ Overheating: Matter decay (-41). 02282_ as-92686 destroyed. 02284_ U-05 Engineer builds a Wall. 02286_ C-30 ARC bursts open, deploying its payload. 02286_ D-53 Grenadier unfolds itself. 02286_ as-70084 destroyed. 02286_ as-00048 destroyed. 02286_ as-81879 destroyed. 02288_ U-05 Engineer builds a Wall. 02289_ The unstable cave ceiling collapses. 02289_ Lgt. Cannon destroyed. 02291_ Acquired 7 matter. 02292_ as-96224 destroyed. 02293_ The unstable cave ceiling collapses. 02297_ Grenade Launcher destroyed. 02299_ The unstable cave ceiling collapses. 02301_ Com. Wheel destroyed. Map ----- +----------------------------------------------------+ | ?????## ## ##?????????????????????? | | ???### ##### ##???#??????????????????????? | | ??## """ ##???# ##???????????????????????????? | | ??# """ #????# #????????????????????????????? | | ??# """ #????# #????????????????????????????? | | ??## """ #????# #????????????????????????????? | | ##### #????# #????????????????????????????? | | # ### #????# #????????????????????????????? | | ### #????# #????????????????????????????? | | #?# ##???## ##???????????????????????????? | | ##?# ##???## ##??????????????????????????? | | #??# ##???## ##?????? ????????????????? | | #### #???## #### #???????????????? | | ## #???# #???????????????? | | #???# #???????????????? | | # ##???# #### # ???????????????? | | ## ###????## ##??# #?? ????????????????? | | ?# ##???????## #???# #???? ?????????????????? | | ?# ##?????????## ##??# ###????????????????????? | | ?####???????????## #### # ##???????????????????? | | ????????????????## # ##??????????????????? | | ???????????????## u # #??????????????????? | | ???????????????# %" #??????????????????? | | ???????????????# # ##??????????????????? | | ???????????????## # #??????????????????? | | ????????????????# # @ ##??????????????????? | | ????????????????# # d #??????????????????? | | ????????????????# d #??????????????????? | | ????????????????## % #?????????????????? | | ?????????????????# #?????????????????? | | ?????????????????### # % ????????????????? | | ???????????????????##### ## % ???????????????? | | ???????????????????????### # < |?????????????? | | ?????????????????????????## =%=????????????? | | ???????????????????????????# = |???????????? | | ????????????????????????????## % =??????????? | | ??????????????????????????????## ###???????????? | | ????????????????????????????????####?????????????? | | ?????????????????????????????????????????????????? | | ?????????????????????????????????????????????????? | | ?????????????????????????????????????????????????? | | ?????????????????????????????????????????????????? | | ?????????????????????????????????????????????????? | | ?????????????????????????????????????????????????? | | ?????????????????????????????????????????????????? | | ?????????????????????????????????????????????????? | | ?????????????????????????????????????????????????? | | ?????????????????????????????????????????????????? | | ?????????????????????????????????????????????????? | | ?????????????????????????????????????????????????? | +----------------------------------------------------+ Best States ------------- Heat Dissipation 25 Energy Generation 14 Energy Capacity 250 Matter Stores 300 Matter Capacity 300 Sight Range 16 Terrain Scan Range 16 Terrain Scan Density 10 Resistance: KI 20 Resistance: TH 20 Resistance: EX 20 Resistance: EM 20 Resistance: I 20 Resistance: S 20 Resistance: P 20 Core Shielding 20 Evasion (%) 55 Offensive Hacking 10 Item Schematics ----------------- None Robot Schematics ------------------ None Fabricated ------------ Nothing Alien Tech Used ----------------- None Achievements -------------- None Challenges ------------ None Game ------ Seed ShadingDerelictShifter Manual? 0 Play Time 00:29:22 Cumulative 87.4 hours Start 2022.11.30 @ 04:17:09 End 2022.11.30 @ 05:05:22 Sessions 1 Manual Loads 0 Difficulty Adventurer Special Mode None Game No. 93 Rogue 0 Adventurer 93 Explorer 0 Win Type - Total 0 Types 0/0/0/0/0/0/0/0/0 Lore% 38 Gallery% 49 Achievement% 34 Wizard Run 0 Options --------- ASCII 0 Keyboard 0 Movement Mouse Keybinds 0 Fullscreen 1 Font 16/SmallcapsGlow Map View 113x50 Tactical HUD 1 Map Filters NONE Filters NONE Steam 1 RUN: b9fb8980-20dc-4925-8a10-3fa0e29374ca